[Event "Titled Tuesday Blitz December 13 Early 2022"]
[White "Topalov, Aleksandar"]
[Black "Kleiman, Jake"]
[WhiteFideId "925659"]
[BlackFideId "2020041"]
[WhiteElo "2151"]
[BlackElo "2580"]
[Result "0-1"]
[Round "07"]
[TimeControl "180+1"]
[Date "2022.12.14"]
[WhiteClock "0:00:01"]
[BlackClock "0:00:16"]

1. b3 {[%clk 0:03:00]}  d5 {[%clk 0:02:59]} 2. Bb2 {[%clk 0:03:00]}  Bg4 {[%clk 0:03:00]} 3. g3 {[%clk 0:02:55]}  e6 {[%clk 0:02:58]} 4. Bg2 {[%clk 0:02:55]}  Nf6 {[%clk 0:02:58]} 5. Nf3 {[%clk 0:02:55]}  Be7 {[%clk 0:02:57]} 6. O-O {[%clk 0:02:55]}  O-O {[%clk 0:02:58]} 7. d3 {[%clk 0:02:55]}  c5 {[%clk 0:02:56]} 8. Nbd2 {[%clk 0:02:55]}  Nc6 {[%clk 0:02:56]} 9. Ne5 {[%clk 0:02:47]}  Nxe5 {[%clk 0:02:55]} 10. Bxe5 {[%clk 0:02:47]}  Nd7 {[%clk 0:02:56]} 11. Bb2 {[%clk 0:02:46]}  Bf6 {[%clk 0:02:57]} 12. Bxf6 {[%clk 0:02:44]}  Nxf6 {[%clk 0:02:58]} 13. h3 {[%clk 0:02:41]}  Bh5 {[%clk 0:02:57]} 14. c4 {[%clk 0:02:39]}  Rb8 {[%clk 0:02:51]} 15. cxd5 {[%clk 0:02:35]}  exd5 {[%clk 0:02:50]} 16. Re1 {[%clk 0:02:34]}  Re8 {[%clk 0:02:47]} 17. g4 {[%clk 0:02:07]}  Bg6 {[%clk 0:02:46]} 18. e4 {[%clk 0:02:06]}  Qd6 {[%clk 0:02:41]} 19. Qc2 {[%clk 0:01:48]}  Rbd8 {[%clk 0:02:37]} 20. Rad1 {[%clk 0:01:46]}  b6 {[%clk 0:02:28]} 21. Qc3 {[%clk 0:01:45]}  Qf4 {[%clk 0:02:21]} 22. b4 {[%clk 0:00:37]}  h5 {[%clk 0:01:58]} 23. gxh5 {[%clk 0:00:31]}  Nxh5 {[%clk 0:01:48]} 24. bxc5 {[%clk 0:00:30]}  bxc5 {[%clk 0:01:45]} 25. Qxc5 {[%clk 0:00:30]}  Qh4 {[%clk 0:00:54]} 26. exd5 {[%clk 0:00:19]}  Nf4 {[%clk 0:00:53]} 27. Re3 {[%clk 0:00:14]}  Qg5 {[%clk 0:00:47]} 28. Rg3 {[%clk 0:00:09]}  Ne2+ {[%clk 0:00:47]} 29. Kh2 {[%clk 0:00:10]}  Nxg3 {[%clk 0:00:46]} 30. fxg3 {[%clk 0:00:10]}  Re2 {[%clk 0:00:45]} 31. Ne4 {[%clk 0:00:09]}  Qxd5 {[%clk 0:00:32]} 32. Qxd5 {[%clk 0:00:09]}  Rxd5 {[%clk 0:00:33]} 33. Kg1 {[%clk 0:00:08]}  Ra5 {[%clk 0:00:32]} 34. Nc3 {[%clk 0:00:06]}  Rc2 {[%clk 0:00:32]} 35. Ne4 {[%clk 0:00:04]}  Raxa2 {[%clk 0:00:31]} 36. Bf3 {[%clk 0:00:05]}  a5 {[%clk 0:00:31]} 37. d4 {[%clk 0:00:05]}  Ra3 {[%clk 0:00:27]} 38. Bg2 {[%clk 0:00:04]}  Bxe4 {[%clk 0:00:24]} 39. Bxe4 {[%clk 0:00:04]}  Rxg3+ {[%clk 0:00:25]} 40. Kf1 {[%clk 0:00:03]}  Rc8 {[%clk 0:00:20]} 41. d5 {[%clk 0:00:03]}  Rd8 {[%clk 0:00:20]} 42. d6 {[%clk 0:00:04]}  Re3 {[%clk 0:00:19]} 43. Bg2 {[%clk 0:00:04]}  Re6 {[%clk 0:00:19]} 44. d7 {[%clk 0:00:04]}  Kf8 {[%clk 0:00:18]} 45. h4 {[%clk 0:00:03]}  Ke7 {[%clk 0:00:18]} 46. Bh3 {[%clk 0:00:04]}  Re3 {[%clk 0:00:17]} 47. Kg2 {[%clk 0:00:04]}  a4 {[%clk 0:00:16]} 48. Rd4 {[%clk 0:00:02]}  a3 {[%clk 0:00:16]} 49. Ra4 {[%clk 0:00:02]}  g6 {[%clk 0:00:16]} 50. Kh2 {[%clk 0:00:01]}  f5 {[%clk 0:00:16]} 51. Kg2 {[%clk 0:00:01]}  Rxd7 {[%clk 0:00:16]} 52. Kf2 {[%clk 0:00:01]}  Rxh3 {[%clk 0:00:16]} 0-1


[Site "https://www.chess.com"]

[Event "Titled Tuesday Blitz December 13 Early 2022"]
[White "Tsatsalashvili, Keti"]
[Black "Winterberg, Lukas"]
[WhiteFideId "13603434"]
[BlackFideId "24622702"]
[WhiteElo "2220"]
[BlackElo "2350"]
[Result "1-0"]
[Round "07"]
[TimeControl "180+1"]
[Date "2022.12.14"]
[WhiteClock "0:00:05"]
[BlackClock "0:00:06"]

1. d4 {[%clk 0:03:00]}  Nf6 {[%clk 0:02:56]} 2. c4 {[%clk 0:03:01]}  e6 {[%clk 0:02:56]} 3. Nf3 {[%clk 0:03:02]}  d5 {[%clk 0:02:57]} 4. Nc3 {[%clk 0:03:01]}  Be7 {[%clk 0:02:54]} 5. Bg5 {[%clk 0:03:00]}  O-O {[%clk 0:02:54]} 6. e3 {[%clk 0:03:00]}  h6 {[%clk 0:02:54]} 7. Bh4 {[%clk 0:03:00]}  b6 {[%clk 0:02:54]} 8. cxd5 {[%clk 0:02:59]}  Nxd5 {[%clk 0:02:54]} 9. Bxe7 {[%clk 0:02:55]}  Qxe7 {[%clk 0:02:55]} 10. Nxd5 {[%clk 0:02:56]}  exd5 {[%clk 0:02:56]} 11. Rc1 {[%clk 0:02:56]}  Bb7 {[%clk 0:02:54]} 12. Bd3 {[%clk 0:02:56]}  c5 {[%clk 0:02:51]} 13. O-O {[%clk 0:02:53]}  Nd7 {[%clk 0:02:51]} 14. Qe2 {[%clk 0:02:52]}  Rfd8 {[%clk 0:02:44]} 15. Ba6 {[%clk 0:02:48]}  Bxa6 {[%clk 0:02:34]} 16. Qxa6 {[%clk 0:02:49]}  Nf6 {[%clk 0:02:26]} 17. dxc5 {[%clk 0:02:41]}  bxc5 {[%clk 0:02:26]} 18. Rfd1 {[%clk 0:02:40]}  Rac8 {[%clk 0:02:22]} 19. b3 {[%clk 0:02:36]}  Rd6 {[%clk 0:02:18]} 20. Qa3 {[%clk 0:02:36]}  Rdc6 {[%clk 0:02:16]} 21. Rc2 {[%clk 0:02:32]}  Kf8 {[%clk 0:02:15]} 22. h3 {[%clk 0:02:32]}  c4 {[%clk 0:02:15]} 23. Qxe7+ {[%clk 0:02:30]}  Kxe7 {[%clk 0:02:16]} 24. Nd4 {[%clk 0:02:28]}  R6c7 {[%clk 0:02:06]} 25. bxc4 {[%clk 0:02:16]}  Rxc4 {[%clk 0:02:00]} 26. Rb2 {[%clk 0:02:16]}  R8c7 {[%clk 0:01:51]} 27. Nf5+ {[%clk 0:02:14]}  Kf8 {[%clk 0:01:47]} 28. Rb8+ {[%clk 0:02:12]}  Rc8 {[%clk 0:01:48]} 29. Rdb1 {[%clk 0:02:00]}  g6 {[%clk 0:01:20]} 30. Nd6 {[%clk 0:01:48]}  Rc1+ {[%clk 0:01:20]} 31. Rxc1 {[%clk 0:01:43]}  Rxb8 {[%clk 0:01:21]} 32. Rc7 {[%clk 0:01:43]}  Ne4 {[%clk 0:01:14]} 33. Nxe4 {[%clk 0:01:34]}  dxe4 {[%clk 0:01:15]} 34. Rxa7 {[%clk 0:01:34]}  Rb1+ {[%clk 0:01:13]} 35. Kh2 {[%clk 0:01:34]}  Rb2 {[%clk 0:01:14]} 36. Kg3 {[%clk 0:01:34]}  Kg7 {[%clk 0:01:14]} 37. f3 {[%clk 0:01:33]}  exf3 {[%clk 0:01:10]} 38. gxf3 {[%clk 0:01:34]}  h5 {[%clk 0:01:10]} 39. a4 {[%clk 0:01:30]}  g5 {[%clk 0:01:05]} 40. h4 {[%clk 0:01:24]}  gxh4+ {[%clk 0:01:00]} 41. Kxh4 {[%clk 0:01:24]}  Rb3 {[%clk 0:01:01]} 42. Re7 {[%clk 0:01:19]}  Kg6 {[%clk 0:00:51]} 43. Re4 {[%clk 0:01:20]}  f5 {[%clk 0:00:46]} 44. Re6+ {[%clk 0:01:15]}  Kf7 {[%clk 0:00:46]} 45. Re5 {[%clk 0:01:08]}  Kf6 {[%clk 0:00:46]} 46. f4 {[%clk 0:00:58]}  Rb1 {[%clk 0:00:42]} 47. a5 {[%clk 0:00:48]}  Rh1+ {[%clk 0:00:40]} 48. Kg3 {[%clk 0:00:48]}  Rg1+ {[%clk 0:00:28]} 49. Kf2 {[%clk 0:00:47]}  Rg8 {[%clk 0:00:23]} 50. a6 {[%clk 0:00:40]}  h4 {[%clk 0:00:23]} 51. Ra5 {[%clk 0:00:41]}  h3 {[%clk 0:00:23]} 52. Ra1 {[%clk 0:00:37]}  Rg2+ {[%clk 0:00:19]} 53. Kf3 {[%clk 0:00:35]}  Rg8 {[%clk 0:00:17]} 54. Rh1 {[%clk 0:00:29]}  Ra8 {[%clk 0:00:14]} 55. Ra1 {[%clk 0:00:17]}  Rg8 {[%clk 0:00:13]} 56. a7 {[%clk 0:00:16]}  h2 {[%clk 0:00:12]} 57. Kf2 {[%clk 0:00:15]}  Ke6 {[%clk 0:00:12]} 58. Ra6+ {[%clk 0:00:13]}  Kd5 {[%clk 0:00:11]} 59. Rh6 {[%clk 0:00:12]}  Ra8 {[%clk 0:00:09]} 60. Rxh2 {[%clk 0:00:07]}  Rxa7 {[%clk 0:00:09]} 61. Kf3 {[%clk 0:00:08]}  Rf7 {[%clk 0:00:07]} 62. Rh6 {[%clk 0:00:08]}  Rf8 {[%clk 0:00:07]} 63. Ra6 {[%clk 0:00:06]}  Rf7 {[%clk 0:00:08]} 64. Ra5+ {[%clk 0:00:06]}  Ke6 {[%clk 0:00:08]} 65. Ra6+ {[%clk 0:00:06]}  Kd5 {[%clk 0:00:08]} 66. Ra5+ {[%clk 0:00:06]}  Ke6 {[%clk 0:00:08]} 67. Kg3 {[%clk 0:00:04]}  Rg7+ {[%clk 0:00:08]} 68. Kf2 {[%clk 0:00:03]}  Rf7 {[%clk 0:00:08]} 69. Ke2 {[%clk 0:00:04]}  Rf8 {[%clk 0:00:08]} 70. Re5+ {[%clk 0:00:04]}  Kf6 {[%clk 0:00:08]} 71. Kd3 {[%clk 0:00:04]}  Rd8+ {[%clk 0:00:08]} 72. Kc4 {[%clk 0:00:05]}  Rd7 {[%clk 0:00:09]} 73. Rd5 {[%clk 0:00:04]}  Re7 {[%clk 0:00:09]} 74. Kd4 {[%clk 0:00:05]}  Rb7 {[%clk 0:00:09]} 75. Rd6+ {[%clk 0:00:04]}  Ke7 {[%clk 0:00:10]} 76. Ke5 {[%clk 0:00:04]}  Rb3 {[%clk 0:00:09]} 77. Ra6 {[%clk 0:00:02]}  Rb5+ {[%clk 0:00:08]} 78. Kd4 {[%clk 0:00:02]}  Kf7 {[%clk 0:00:08]} 79. Rc6 {[%clk 0:00:02]}  Ke7 {[%clk 0:00:07]} 80. Rc5 {[%clk 0:00:02]}  Rb4+ {[%clk 0:00:07]} 81. Ke5 {[%clk 0:00:01]}  Re4+ {[%clk 0:00:07]} 82. Kxf5 {[%clk 0:00:02]}  Rb4 {[%clk 0:00:03]} 83. Re5+ {[%clk 0:00:02]}  Kf7 {[%clk 0:00:04]} 84. e4 {[%clk 0:00:03]}  Rb1 {[%clk 0:00:04]} 85. Ra5 {[%clk 0:00:03]}  Rh1 {[%clk 0:00:04]} 86. Ra7+ {[%clk 0:00:04]}  Ke8 {[%clk 0:00:05]} 87. e5 {[%clk 0:00:04]}  Rh5+ {[%clk 0:00:05]} 88. Kg6 {[%clk 0:00:05]}  Rh6+ {[%clk 0:00:06]} 89. Kxh6 {[%clk 0:00:05]} 1-0


[Site "https://www.chess.com"]

[Event "Titled Tuesday Blitz December 13 Early 2022"]
[White "Tymrakiewicz, Rafal"]
[Black "Martinez Ramirez, Lennis"]
[WhiteFideId "1108832"]
[BlackFideId "3509079"]
[WhiteElo "2139"]
[BlackElo "2439"]
[Result "0-1"]
[Round "07"]
[TimeControl "180+1"]
[Date "2022.12.14"]
[WhiteClock "0:00:01"]
[BlackClock "0:00:33"]

1. e4 {[%clk 0:02:53]}  c5 {[%clk 0:02:59]} 2. c3 {[%clk 0:02:53]}  Nc6 {[%clk 0:03:00]} 3. d4 {[%clk 0:02:51]}  d5 {[%clk 0:02:59]} 4. exd5 {[%clk 0:02:45]}  Qxd5 {[%clk 0:03:00]} 5. Nf3 {[%clk 0:02:45]}  Bg4 {[%clk 0:03:00]} 6. Nbd2 {[%clk 0:02:33]}  cxd4 {[%clk 0:02:59]} 7. Bc4 {[%clk 0:02:33]}  Qd7 {[%clk 0:02:50]} 8. cxd4 {[%clk 0:02:06]}  e6 {[%clk 0:02:48]} 9. h3 {[%clk 0:01:58]}  Bh5 {[%clk 0:02:42]} 10. O-O {[%clk 0:01:50]}  Nf6 {[%clk 0:02:41]} 11. Qa4 {[%clk 0:01:41]}  Be7 {[%clk 0:02:31]} 12. Bb5 {[%clk 0:01:33]}  O-O {[%clk 0:02:24]} 13. Ne5 {[%clk 0:01:27]}  Qc7 {[%clk 0:02:14]} 14. Ndf3 {[%clk 0:01:09]}  Nb4 {[%clk 0:02:10]} 15. Bf4 {[%clk 0:01:03]}  Bxf3 {[%clk 0:02:09]} 16. gxf3 {[%clk 0:01:02]}  Nbd5 {[%clk 0:02:06]} 17. Rac1 {[%clk 0:00:48]}  Qb6 {[%clk 0:02:04]} 18. Be3 {[%clk 0:00:48]}  a6 {[%clk 0:02:03]} 19. Bd3 {[%clk 0:00:47]}  Qxb2 {[%clk 0:02:03]} 20. Rb1 {[%clk 0:00:40]}  b5 {[%clk 0:01:52]} 21. Bxb5 {[%clk 0:00:19]}  Qa3 {[%clk 0:01:01]} 22. Qxa3 {[%clk 0:00:17]}  Bxa3 {[%clk 0:01:02]} 23. Bc6 {[%clk 0:00:16]}  Rab8 {[%clk 0:01:01]} 24. Bxd5 {[%clk 0:00:13]}  Nxd5 {[%clk 0:00:59]} 25. Nd7 {[%clk 0:00:09]}  Rxb1 {[%clk 0:00:58]} 26. Rxb1 {[%clk 0:00:10]}  Rd8 {[%clk 0:00:58]} 27. Rb8 {[%clk 0:00:10]}  Rxb8 {[%clk 0:00:57]} 28. Nxb8 {[%clk 0:00:11]}  a5 {[%clk 0:00:58]} 29. Nc6 {[%clk 0:00:11]}  Bb4 {[%clk 0:00:57]} 30. Kf1 {[%clk 0:00:10]}  Nc3 {[%clk 0:00:57]} 31. Nxb4 {[%clk 0:00:06]}  axb4 {[%clk 0:00:56]} 32. Ke1 {[%clk 0:00:05]}  Nxa2 {[%clk 0:00:57]} 33. Kd2 {[%clk 0:00:06]}  b3 {[%clk 0:00:57]} 34. d5 {[%clk 0:00:03]}  exd5 {[%clk 0:00:57]} 35. Bd4 {[%clk 0:00:03]}  f6 {[%clk 0:00:57]} 36. Bb2 {[%clk 0:00:03]}  Kf7 {[%clk 0:00:57]} 37. Kd3 {[%clk 0:00:04]}  Ke6 {[%clk 0:00:57]} 38. Kd4 {[%clk 0:00:04]}  Kd6 {[%clk 0:00:57]} 39. Ba3+ {[%clk 0:00:03]}  Kc6 {[%clk 0:00:58]} 40. f4 {[%clk 0:00:04]}  g6 {[%clk 0:00:54]} 41. h4 {[%clk 0:00:04]}  h5 {[%clk 0:00:51]} 42. f5 {[%clk 0:00:04]}  gxf5 {[%clk 0:00:51]} 43. f4 {[%clk 0:00:05]}  Nb4 {[%clk 0:00:47]} 44. Kc3 {[%clk 0:00:04]}  Nc2 {[%clk 0:00:43]} 45. Be7 {[%clk 0:00:02]}  Nd4 {[%clk 0:00:36]} 46. Bxf6 {[%clk 0:00:02]}  Ne2+ {[%clk 0:00:34]} 47. Kxb3 {[%clk 0:00:03]}  Nxf4 {[%clk 0:00:35]} 48. Kc3 {[%clk 0:00:02]}  Ne6 {[%clk 0:00:34]} 49. Be5 {[%clk 0:00:01]}  Kc5 {[%clk 0:00:33]} 50. Kd3 {[%clk 0:00:01]}  d4 {[%clk 0:00:33]} 0-1


[Site "https://www.chess.com"]

[Event "Titled Tuesday Blitz December 13 Early 2022"]
[White "Vlassov, Nikolai"]
[Black "Harshavardhan G B"]
[WhiteFideId "4103360"]
[BlackFideId "25059009"]
[WhiteElo "2324"]
[BlackElo "2323"]
[Result "1/2-1/2"]
[Round "07"]
[TimeControl "180+1"]
[Date "2022.12.14"]
[WhiteClock "0:00:04"]
[BlackClock "0:00:12"]

1. e4 {[%clk 0:03:00]}  e5 {[%clk 0:02:55]} 2. Bc4 {[%clk 0:03:00]}  Nf6 {[%clk 0:02:53]} 3. d3 {[%clk 0:03:00]}  c6 {[%clk 0:02:48]} 4. Nf3 {[%clk 0:02:59]}  d5 {[%clk 0:02:39]} 5. Bb3 {[%clk 0:02:59]}  Bd6 {[%clk 0:02:38]} 6. Nc3 {[%clk 0:02:58]}  d4 {[%clk 0:02:32]} 7. Ne2 {[%clk 0:02:58]}  h6 {[%clk 0:02:31]} 8. O-O {[%clk 0:02:57]}  O-O {[%clk 0:02:30]} 9. c3 {[%clk 0:02:55]}  c5 {[%clk 0:02:30]} 10. cxd4 {[%clk 0:02:55]}  cxd4 {[%clk 0:02:31]} 11. Ng3 {[%clk 0:02:56]}  Nc6 {[%clk 0:02:30]} 12. Nh4 {[%clk 0:02:49]}  Bg4 {[%clk 0:02:24]} 13. f3 {[%clk 0:02:45]}  Be6 {[%clk 0:02:19]} 14. Nhf5 {[%clk 0:02:44]}  Ne7 {[%clk 0:02:15]} 15. Nxd6 {[%clk 0:02:37]}  Qxd6 {[%clk 0:02:16]} 16. f4 {[%clk 0:02:38]}  Nc6 {[%clk 0:02:12]} 17. fxe5 {[%clk 0:02:32]}  Nxe5 {[%clk 0:02:07]} 18. Rxf6 {[%clk 0:02:07]}  gxf6 {[%clk 0:02:03]} 19. Bxh6 {[%clk 0:02:06]}  Rfc8 {[%clk 0:02:00]} 20. Qh5 {[%clk 0:01:52]}  Ng6 {[%clk 0:01:46]} 21. Rf1 {[%clk 0:01:46]}  Bxb3 {[%clk 0:01:35]} 22. axb3 {[%clk 0:01:44]}  Rc5 {[%clk 0:01:33]} 23. Nf5 {[%clk 0:01:41]}  Qe6 {[%clk 0:01:19]} 24. Bd2 {[%clk 0:01:33]}  Qc8 {[%clk 0:00:58]} 25. Bb4 {[%clk 0:01:22]}  b6 {[%clk 0:00:49]} 26. Bxc5 {[%clk 0:01:12]}  bxc5 {[%clk 0:00:50]} 27. h4 {[%clk 0:00:58]}  Qf8 {[%clk 0:00:41]} 28. Qg4 {[%clk 0:00:54]}  Kh7 {[%clk 0:00:40]} 29. Rf3 {[%clk 0:00:41]}  Rb8 {[%clk 0:00:32]} 30. Rg3 {[%clk 0:00:32]}  Rxb3 {[%clk 0:00:29]} 31. h5 {[%clk 0:00:21]}  Ne5 {[%clk 0:00:27]} 32. Qf4 {[%clk 0:00:18]}  Rxd3 {[%clk 0:00:20]} 33. Rg7+ {[%clk 0:00:17]}  Qxg7 {[%clk 0:00:20]} 34. Nxg7 {[%clk 0:00:17]}  Kxg7 {[%clk 0:00:21]} 35. h6+ {[%clk 0:00:18]}  Kg6 {[%clk 0:00:19]} 36. h7 {[%clk 0:00:18]}  Kxh7 {[%clk 0:00:19]} 37. Kh2 {[%clk 0:00:14]}  Kg7 {[%clk 0:00:19]} 38. g3 {[%clk 0:00:11]}  Rb3 {[%clk 0:00:18]} 39. Kh3 {[%clk 0:00:11]}  Rxb2 {[%clk 0:00:18]} 40. Qf5 {[%clk 0:00:10]}  Rb3 {[%clk 0:00:17]} 41. Kg2 {[%clk 0:00:09]}  Rc3 {[%clk 0:00:17]} 42. g4 {[%clk 0:00:09]}  Ng6 {[%clk 0:00:16]} 43. Kf2 {[%clk 0:00:07]}  Re3 {[%clk 0:00:16]} 44. g5 {[%clk 0:00:07]}  fxg5 {[%clk 0:00:16]} 45. Qxg5 {[%clk 0:00:08]}  Rxe4 {[%clk 0:00:16]} 46. Qxc5 {[%clk 0:00:08]}  Rf4+ {[%clk 0:00:16]} 47. Kg3 {[%clk 0:00:08]}  a6 {[%clk 0:00:17]} 48. Qd6 {[%clk 0:00:08]}  Kh6 {[%clk 0:00:16]} 49. Qxa6 {[%clk 0:00:08]}  Kg5 {[%clk 0:00:16]} 50. Qb5+ {[%clk 0:00:08]}  f5 {[%clk 0:00:16]} 51. Qd5 {[%clk 0:00:07]}  Rg4+ {[%clk 0:00:16]} 52. Kf3 {[%clk 0:00:06]}  Re4 {[%clk 0:00:17]} 53. Qd8+ {[%clk 0:00:06]}  Kh6 {[%clk 0:00:16]} 54. Qf6 {[%clk 0:00:05]}  Kh5 {[%clk 0:00:16]} 55. Kf2 {[%clk 0:00:02]}  Rf4+ {[%clk 0:00:15]} 56. Ke2 {[%clk 0:00:03]}  Kh6 {[%clk 0:00:14]} 57. Kd2 {[%clk 0:00:03]}  Rf3 {[%clk 0:00:14]} 58. Qd6 {[%clk 0:00:03]}  Kh5 {[%clk 0:00:14]} 59. Qxd4 {[%clk 0:00:02]}  f4 {[%clk 0:00:14]} 60. Qf6 {[%clk 0:00:02]}  Nh4 {[%clk 0:00:13]} 61. Qe5+ {[%clk 0:00:02]}  Kg4 {[%clk 0:00:13]} 62. Qg7+ {[%clk 0:00:02]}  Kh3 {[%clk 0:00:13]} 63. Qd7+ {[%clk 0:00:03]}  Kg3 {[%clk 0:00:13]} 64. Qg7+ {[%clk 0:00:03]}  Kh2 {[%clk 0:00:13]} 65. Ke2 {[%clk 0:00:04]}  Rg3 {[%clk 0:00:13]} 66. Qf7 {[%clk 0:00:03]}  f3+ {[%clk 0:00:13]} 67. Kf2 {[%clk 0:00:04]}  Rg2+ {[%clk 0:00:13]} 68. Kf1 {[%clk 0:00:04]}  Rg3 {[%clk 0:00:13]} 69. Qf4 {[%clk 0:00:04]}  Kh3 {[%clk 0:00:13]} 70. Qe5 {[%clk 0:00:04]}  Rg4 {[%clk 0:00:13]} 71. Qe6 {[%clk 0:00:04]}  Kg3 {[%clk 0:00:12]} 72. Qe5+ {[%clk 0:00:04]}  Kh3 {[%clk 0:00:12]} 73. Qe6 {[%clk 0:00:05]}  Ng2 {[%clk 0:00:12]} 74. Qh6+ {[%clk 0:00:04]}  Nh4 {[%clk 0:00:12]} 75. Qe6 {[%clk 0:00:04]} 1/2-1/2


[Site "https://www.chess.com"]

[Event "Titled Tuesday Blitz December 13 Early 2022"]
[White "Volkov, Maksim"]
[Black "Mazurkiewicz, Michal"]
[WhiteFideId "54123070"]
[BlackFideId "1124943"]
[WhiteElo "2257"]
[BlackElo "2081"]
[Result "1-0"]
[Round "07"]
[TimeControl "180+1"]
[Date "2022.12.14"]
[WhiteClock "0:02:18"]
[BlackClock "0:00:02"]

1. d4 {[%clk 0:03:00]}  Nf6 {[%clk 0:02:59]} 2. c4 {[%clk 0:03:00]}  e5 {[%clk 0:02:59]} 3. dxe5 {[%clk 0:03:00]}  Ng4 {[%clk 0:03:00]} 4. e3 {[%clk 0:03:01]}  Nxe5 {[%clk 0:02:59]} 5. Nh3 {[%clk 0:03:01]}  d5 {[%clk 0:02:59]} 6. cxd5 {[%clk 0:02:59]}  Bxh3 {[%clk 0:02:59]} 7. gxh3 {[%clk 0:03:00]}  Bd6 {[%clk 0:02:59]} 8. Nc3 {[%clk 0:02:59]}  Nbd7 {[%clk 0:03:00]} 9. Bg2 {[%clk 0:02:50]}  O-O {[%clk 0:03:00]} 10. O-O {[%clk 0:02:50]}  f5 {[%clk 0:03:00]} 11. Ne2 {[%clk 0:02:44]}  Qh4 {[%clk 0:02:53]} 12. Nf4 {[%clk 0:02:41]}  Rae8 {[%clk 0:02:31]} 13. Bd2 {[%clk 0:02:33]}  Nc4 {[%clk 0:02:13]} 14. Bc3 {[%clk 0:02:32]}  Bxf4 {[%clk 0:02:11]} 15. Qd4 {[%clk 0:02:32]}  Bxh2+ {[%clk 0:02:03]} 16. Kxh2 {[%clk 0:02:32]}  Qxd4 {[%clk 0:02:03]} 17. Bxd4 {[%clk 0:02:33]}  f4 {[%clk 0:01:58]} 18. Rac1 {[%clk 0:02:26]}  Nd2 {[%clk 0:01:41]} 19. Rfd1 {[%clk 0:02:25]}  fxe3 {[%clk 0:01:41]} 20. Bxe3 {[%clk 0:02:25]}  Ne4 {[%clk 0:01:24]} 21. Bxe4 {[%clk 0:02:20]}  Rxe4 {[%clk 0:01:25]} 22. Rxc7 {[%clk 0:02:20]}  Ne5 {[%clk 0:01:20]} 23. d6 {[%clk 0:02:19]}  Rxe3 {[%clk 0:00:04]} 24. fxe3 {[%clk 0:02:17]}  Rf2+ {[%clk 0:00:05]} 25. Kg3 {[%clk 0:02:17]}  Rf3+ {[%clk 0:00:04]} 26. Kg2 {[%clk 0:02:17]}  Rxe3 {[%clk 0:00:03]} 27. d7 {[%clk 0:02:18]}  Re2+ {[%clk 0:00:04]} 28. Kf1 {[%clk 0:02:18]}  Rd2 {[%clk 0:00:02]} 29. Rxd2 {[%clk 0:02:18]} 1-0


[Site "https://www.chess.com"]

[Event "Titled Tuesday Blitz December 13 Early 2022"]
[White "Winkels, Marcel"]
[Black "Szyszylo, Rafal"]
[WhiteFideId "1003887"]
[BlackFideId "1109626"]
[WhiteElo "1900"]
[BlackElo "1981"]
[Result "1-0"]
[Round "07"]
[TimeControl "180+1"]
[Date "2022.12.14"]
[WhiteClock "0:00:06"]
[BlackClock "0:00:06"]

1. d4 {[%clk 0:03:00]}  d6 {[%clk 0:02:56]} 2. Bf4 {[%clk 0:03:01]}  g6 {[%clk 0:02:55]} 3. e4 {[%clk 0:02:59]}  Bg7 {[%clk 0:02:55]} 4. Nc3 {[%clk 0:02:58]}  Nc6 {[%clk 0:02:50]} 5. Nf3 {[%clk 0:02:57]}  Bg4 {[%clk 0:02:49]} 6. d5 {[%clk 0:02:55]}  Nd4 {[%clk 0:02:48]} 7. Be2 {[%clk 0:02:54]}  Nxe2 {[%clk 0:02:47]} 8. Qxe2 {[%clk 0:02:53]}  Nf6 {[%clk 0:02:45]} 9. h3 {[%clk 0:02:47]}  Bxf3 {[%clk 0:02:43]} 10. Qxf3 {[%clk 0:02:46]}  O-O {[%clk 0:02:43]} 11. O-O-O {[%clk 0:02:36]}  b5 {[%clk 0:02:42]} 12. g4 {[%clk 0:02:31]}  b4 {[%clk 0:02:41]} 13. Ne2 {[%clk 0:02:30]}  Nd7 {[%clk 0:02:30]} 14. Nd4 {[%clk 0:02:24]}  Ne5 {[%clk 0:02:26]} 15. Bxe5 {[%clk 0:02:23]}  dxe5 {[%clk 0:02:25]} 16. Nc6 {[%clk 0:02:21]}  Qd6 {[%clk 0:02:25]} 17. h4 {[%clk 0:02:18]}  a5 {[%clk 0:02:24]} 18. h5 {[%clk 0:02:16]}  e6 {[%clk 0:01:56]} 19. Qh3 {[%clk 0:01:32]}  g5 {[%clk 0:01:46]} 20. h6 {[%clk 0:01:16]}  Bf6 {[%clk 0:01:46]} 21. Qe3 {[%clk 0:01:15]}  exd5 {[%clk 0:01:44]} 22. exd5 {[%clk 0:01:14]}  e4 {[%clk 0:01:42]} 23. Rh5 {[%clk 0:01:06]}  Rfe8 {[%clk 0:01:21]} 24. Rd4 {[%clk 0:00:42]}  Qf4 {[%clk 0:01:15]} 25. Rd1 {[%clk 0:00:35]}  Qxg4 {[%clk 0:01:07]} 26. Rh3 {[%clk 0:00:33]}  Qf4 {[%clk 0:01:05]} 27. Qxf4 {[%clk 0:00:31]}  gxf4 {[%clk 0:01:04]} 28. Rg1+ {[%clk 0:00:32]}  Kh8 {[%clk 0:00:54]} 29. Rg4 {[%clk 0:00:18]}  Rg8 {[%clk 0:00:55]} 30. Rxg8+ {[%clk 0:00:16]}  Rxg8 {[%clk 0:00:53]} 31. Kd2 {[%clk 0:00:15]}  Rg2 {[%clk 0:00:50]} 32. Ke2 {[%clk 0:00:14]}  e3 {[%clk 0:00:47]} 33. Rf3 {[%clk 0:00:13]}  Bg5 {[%clk 0:00:39]} 34. Nxa5 {[%clk 0:00:12]}  Bxh6 {[%clk 0:00:36]} 35. Nc6 {[%clk 0:00:11]}  Bg5 {[%clk 0:00:34]} 36. Nxb4 {[%clk 0:00:10]}  h5 {[%clk 0:00:34]} 37. Nd3 {[%clk 0:00:09]}  h4 {[%clk 0:00:35]} 38. Nxf4 {[%clk 0:00:08]}  exf2 {[%clk 0:00:25]} 39. Nxg2 {[%clk 0:00:05]}  Kg7 {[%clk 0:00:17]} 40. Kxf2 {[%clk 0:00:04]}  Bc1 {[%clk 0:00:17]} 41. b3 {[%clk 0:00:03]}  Kg6 {[%clk 0:00:17]} 42. c4 {[%clk 0:00:04]}  Kg5 {[%clk 0:00:17]} 43. Nxh4 {[%clk 0:00:04]}  Kxh4 {[%clk 0:00:16]} 44. Rxf7 {[%clk 0:00:05]}  Ba3 {[%clk 0:00:16]} 45. Rxc7 {[%clk 0:00:05]}  Kg5 {[%clk 0:00:15]} 46. c5 {[%clk 0:00:05]}  Kf6 {[%clk 0:00:15]} 47. d6 {[%clk 0:00:06]}  Ke6 {[%clk 0:00:14]} 48. d7 {[%clk 0:00:06]}  Ke7 {[%clk 0:00:13]} 49. c6 {[%clk 0:00:06]}  Bc5+ {[%clk 0:00:12]} 50. Kf3 {[%clk 0:00:04]}  Bb6 {[%clk 0:00:12]} 51. Rc8 {[%clk 0:00:05]}  Ba5 {[%clk 0:00:10]} 52. b4 {[%clk 0:00:06]}  Bb6 {[%clk 0:00:10]} 53. b5 {[%clk 0:00:06]}  Ba5 {[%clk 0:00:10]} 54. a4 {[%clk 0:00:07]}  Bb6 {[%clk 0:00:10]} 55. Ra8 {[%clk 0:00:07]}  Bc7 {[%clk 0:00:08]} 56. a5 {[%clk 0:00:07]}  Kd6 {[%clk 0:00:06]} 57. b6 {[%clk 0:00:08]}  Bxb6 {[%clk 0:00:05]} 58. axb6 {[%clk 0:00:07]}  Kc5 {[%clk 0:00:05]} 59. d8=Q {[%clk 0:00:07]}  Kb5 {[%clk 0:00:06]} 60. c7 {[%clk 0:00:06]}  Kc4 {[%clk 0:00:06]} 61. Ra1 {[%clk 0:00:06]} 1-0


[Site "https://www.chess.com"]